[Event "*** Titled Tuesday Blitz"]
[Site "Chess.com"]
[Date "2019.06.04"]
[Round "7"]
[White "jamengrand"]
[Black "Satscho"]
[Result "0-1"]
[WhiteElo "2123"]
[BlackElo "2274"]
[TimeControl "180+2"]
[EndTime "14:34:16 PDT"]
[Termination "Satscho won by resignation"]

1. e4 {[%clk 0:03:01.9]} 1... c6 {[%clk 0:02:59.8]} 2. d3 {[%clk 0:03:02.4]}
2... e5 {[%clk 0:02:54.9]} 3. Nf3 {[%clk 0:03:02.6]} 3... Qc7 {[%clk 0:02:52.4]}
4. c4 {[%clk 0:03:01.2]} 4... Nf6 {[%clk 0:02:52.2]} 5. Nc3 {[%clk 0:03:02]}
5... Bc5 {[%clk 0:02:49.3]} 6. Be3 {[%clk 0:03:02.4]} 6... Bxe3 {[%clk
0:02:49.9]} 7. fxe3 {[%clk 0:03:03.5]} 7... O-O {[%clk 0:02:49.9]} 8. Qd2 {[%clk
0:03:03.2]} 8... a5 {[%clk 0:02:34]} 9. Be2 {[%clk 0:02:58.9]} 9... Na6 {[%clk
0:02:30]} 10. O-O {[%clk 0:02:59.2]} 10... Nc5 {[%clk 0:02:30.3]} 11. Kh1 {[%clk
0:03:00]} 11... Ne6 {[%clk 0:02:21.8]} 12. Nh4 {[%clk 0:03:00.3]} 12... Kh8
{[%clk 0:02:21.2]} 13. Nf5 {[%clk 0:02:58.6]} 13... Ng8 {[%clk 0:02:09.5]} 14.
d4 {[%clk 0:02:57.2]} 14... g6 {[%clk 0:02:04]} 15. Nh4 {[%clk 0:02:56.3]} 15...
exd4 {[%clk 0:01:56.9]} 16. exd4 {[%clk 0:02:57.2]} 16... Qd8 {[%clk 0:01:56.7]}
17. g3 {[%clk 0:02:55.3]} 17... Qg5 {[%clk 0:01:53.8]} 18. Qd3 {[%clk
0:02:41.4]} 18... c5 {[%clk 0:01:40.8]} 19. Nf3 {[%clk 0:02:28.8]} 19... Qe7
{[%clk 0:01:33]} 20. Nd5 {[%clk 0:02:29.1]} 20... Qd8 {[%clk 0:01:31.8]} 21. Ne5
{[%clk 0:02:19.2]} 21... f6 {[%clk 0:01:22.9]} 22. Ng4 {[%clk 0:02:08.6]} 22...
Nxd4 {[%clk 0:01:16.5]} 23. e5 {[%clk 0:01:52.5]} 23... f5 {[%clk 0:01:09]} 24.
Ngf6 {[%clk 0:01:43.9]} 24... Nxf6 {[%clk 0:01:10]} 25. exf6 {[%clk 0:01:43.9]}
25... b6 {[%clk 0:01:08.2]} 26. Bf3 {[%clk 0:01:43.4]} 26... Bb7 {[%clk
0:01:06.1]} 27. Bg2 {[%clk 0:01:44.4]} 27... Rb8 {[%clk 0:01:06]} 28. Rae1
{[%clk 0:01:41.7]} 28... Bxd5 {[%clk 0:00:51.4]} 29. cxd5 {[%clk 0:01:40.3]}
29... Qxf6 {[%clk 0:00:52.3]} 30. g4 {[%clk 0:01:30.5]} 30... f4 {[%clk
0:00:50]} 31. Bf3 {[%clk 0:01:20]} 31... d6 {[%clk 0:00:50.4]} 32. Qa6 {[%clk
0:01:15.8]} 32... Qf7 {[%clk 0:00:44.8]} 33. g5 {[%clk 0:01:14.2]} 33... Nxf3
{[%clk 0:00:45.5]} 34. Rxf3 {[%clk 0:01:09.4]} 34... Qxd5 {[%clk 0:00:46.9]} 35.
Rf1 {[%clk 0:01:10]} 35... Rbe8 {[%clk 0:00:48.4]} 36. h4 {[%clk 0:01:05.5]}
36... Re3 {[%clk 0:00:49.3]} 37. Kg2 {[%clk 0:01:06.1]} 37... Qd2+ {[%clk
0:00:39.1]} 38. R1f2 {[%clk 0:01:01.8]} 38... Qd5 {[%clk 0:00:37.5]} 39. Kg1
{[%clk 0:00:54.1]} 39... Rxf3 {[%clk 0:00:38.1]} 0-1

[Event "*** Titled Tuesday Blitz"]
[Site "Chess.com"]
[Date "2019.06.04"]
[Round "7"]
[White "Valuebet2000"]
[Black "VerdeNotte"]
[Result "0-1"]
[WhiteElo "2549"]
[BlackElo "2770"]
[TimeControl "180+2"]
[EndTime "14:34:29 PDT"]
[Termination "VerdeNotte won by resignation"]

1. e4 {[%clk 0:03:01.9]} 1... d6 {[%clk 0:02:56.7]} 2. d4 {[%clk 0:03:02.6]}
2... Nf6 {[%clk 0:02:58.1]} 3. Nc3 {[%clk 0:03:03.7]} 3... g6 {[%clk 0:02:59.3]}
4. Be3 {[%clk 0:03:04.1]} 4... a6 {[%clk 0:03:00.3]} 5. f3 {[%clk 0:02:56.9]}
5... Bg7 {[%clk 0:02:56.1]} 6. Qd2 {[%clk 0:02:57.9]} 6... b5 {[%clk 0:02:55.4]}
7. h4 {[%clk 0:02:58.6]} 7... Nbd7 {[%clk 0:02:52]} 8. Nh3 {[%clk 0:02:52.7]}
8... c5 {[%clk 0:02:45.7]} 9. O-O-O {[%clk 0:02:43.5]} 9... b4 {[%clk
0:02:43.2]} 10. Ne2 {[%clk 0:02:44.4]} 10... Qa5 {[%clk 0:02:41.8]} 11. Kb1
{[%clk 0:02:45]} 11... Nb6 {[%clk 0:02:39]} 12. Nc1 {[%clk 0:02:46.4]} 12... c4
{[%clk 0:02:38.5]} 13. Qe1 {[%clk 0:01:58.1]} 13... Bxh3 {[%clk 0:02:23.7]} 14.
Rxh3 {[%clk 0:01:56.3]} 14... Rc8 {[%clk 0:02:18.2]} 15. g4 {[%clk 0:01:43]}
15... Na4 {[%clk 0:02:10.5]} 16. g5 {[%clk 0:01:40.7]} 16... Nh5 {[%clk
0:01:44.1]} 17. f4 {[%clk 0:01:35.7]} 17... O-O {[%clk 0:01:32.6]} 18. Be2
{[%clk 0:01:13]} 18... Nc3+ {[%clk 0:01:23.3]} 19. bxc3 {[%clk 0:00:53.5]} 19...
bxc3 {[%clk 0:01:23.1]} 20. Nb3 {[%clk 0:00:44]} 20... cxb3 {[%clk 0:01:20]} 21.
axb3 {[%clk 0:00:42.8]} 21... Rb8 {[%clk 0:01:01.1]} 22. Bc1 {[%clk 0:00:28.9]}
22... Rfc8 {[%clk 0:00:56.1]} 23. Bxh5 {[%clk 0:00:26.2]} 23... Rxb3+ {[%clk
0:00:53]} 24. cxb3 {[%clk 0:00:25.1]} 24... c2+ {[%clk 0:00:53.5]} 25. Kb2
{[%clk 0:00:26.1]} 25... gxh5 {[%clk 0:00:17.6]} 26. Qxa5 {[%clk 0:00:20.1]}
26... cxd1=Q {[%clk 0:00:18.2]} 27. Be3 {[%clk 0:00:14.2]} 27... Rc2+ {[%clk
0:00:16.4]} 28. Ka3 {[%clk 0:00:15.2]} 28... Qa1+ {[%clk 0:00:17.2]} 29. Kb4
{[%clk 0:00:16.4]} 29... Qe1+ {[%clk 0:00:17.6]} 0-1

[Event "*** Titled Tuesday Blitz"]
[Site "Chess.com"]
[Date "2019.06.04"]
[Round "7"]
[White "Zarikovs1999"]
[Black "Drags95"]
[Result "1-0"]
[WhiteElo "2660"]
[BlackElo "2776"]
[TimeControl "180+2"]
[EndTime "14:34:31 PDT"]
[Termination "Zarikovs1999 won by resignation"]

1. Nf3 {[%clk 0:03:01.9]} 1... Nf6 {[%clk 0:02:58.6]} 2. c4 {[%clk 0:02:58.8]}
2... c5 {[%clk 0:02:59.5]} 3. Nc3 {[%clk 0:02:59.8]} 3... Nc6 {[%clk 0:02:58.5]}
4. g3 {[%clk 0:03:01.3]} 4... g6 {[%clk 0:02:57.7]} 5. Bg2 {[%clk 0:03:01.7]}
5... Bg7 {[%clk 0:02:59.2]} 6. O-O {[%clk 0:03:03.6]} 6... O-O {[%clk
0:02:59.1]} 7. d3 {[%clk 0:02:44.6]} 7... b6 {[%clk 0:02:55]} 8. Bd2 {[%clk
0:02:42.5]} 8... Bb7 {[%clk 0:02:56]} 9. Qc1 {[%clk 0:02:42.3]} 9... d5 {[%clk
0:02:55.2]} 10. cxd5 {[%clk 0:02:39.4]} 10... Nxd5 {[%clk 0:02:57.1]} 11. Bh6
{[%clk 0:02:39.4]} 11... Rc8 {[%clk 0:02:49.9]} 12. Bxg7 {[%clk 0:02:35.2]}
12... Kxg7 {[%clk 0:02:51.8]} 13. Rd1 {[%clk 0:02:30.3]} 13... Nd4 {[%clk
0:02:50.9]} 14. Qd2 {[%clk 0:01:26.3]} 14... Nxc3 {[%clk 0:02:42.7]} 15. bxc3
{[%clk 0:01:28.2]} 15... Nxf3+ {[%clk 0:02:42.5]} 16. Bxf3 {[%clk 0:01:22.6]}
16... Bxf3 {[%clk 0:02:42.9]} 17. exf3 {[%clk 0:01:24.5]} 17... Qd5 {[%clk
0:02:34.2]} 18. Qe3 {[%clk 0:01:21.8]} 18... e6 {[%clk 0:02:32.5]} 19. c4 {[%clk
0:01:17.1]} 19... Qd4 {[%clk 0:02:19]} 20. Qxd4+ {[%clk 0:01:12.6]} 20... cxd4
{[%clk 0:02:20.9]} 21. a4 {[%clk 0:01:14.3]} 21... Rc5 {[%clk 0:02:12.8]} 22. f4
{[%clk 0:00:56.6]} 22... Rfc8 {[%clk 0:02:11.7]} 23. Rdb1 {[%clk 0:00:51.9]}
23... Ra5 {[%clk 0:02:12.1]} 24. Rb5 {[%clk 0:00:46.7]} 24... Rc5 {[%clk
0:02:13.2]} 25. Rxc5 {[%clk 0:00:41.1]} 25... Rxc5 {[%clk 0:02:06.7]} 26. Kg2
{[%clk 0:00:38.4]} 26... Ra5 {[%clk 0:02:07.6]} 27. Kf3 {[%clk 0:00:35.9]} 27...
f5 {[%clk 0:02:09.2]} 28. Ke2 {[%clk 0:00:32.1]} 28... a6 {[%clk 0:02:01.3]} 29.
Kd2 {[%clk 0:00:23.6]} 29... b5 {[%clk 0:01:59.8]} 30. Kc2 {[%clk 0:00:21.4]}
30... bxa4 {[%clk 0:01:09.3]} 31. Kb2 {[%clk 0:00:18.8]} 31... e5 {[%clk
0:01:10.9]} 32. Ka3 {[%clk 0:00:15.6]} 32... Rc5 {[%clk 0:01:03.8]} 33. Kb4
{[%clk 0:00:13.2]} 33... Rc7 {[%clk 0:01:00.2]} 34. fxe5 {[%clk 0:00:14.4]}
34... Rb7+ {[%clk 0:00:59.2]} 35. Kc5 {[%clk 0:00:14.2]} 35... Rb3 {[%clk
0:00:57.4]} 36. Kxd4 {[%clk 0:00:11.3]} 36... a3 {[%clk 0:00:59]} 37. c5 {[%clk
0:00:12.7]} 37... Kf7 {[%clk 0:01:00.6]} 38. Kc4 {[%clk 0:00:13.9]} 38... Rb2
{[%clk 0:00:58.1]} 39. Rxa3 {[%clk 0:00:15]} 1-0

[Event "*** Titled Tuesday Blitz"]
[Site "Chess.com"]
[Date "2019.06.04"]
[Round "7"]
[White "Rakesh"]
[Black "DenishevM"]
[Result "0-1"]
[WhiteElo "2232"]
[BlackElo "2462"]
[TimeControl "180+2"]
[EndTime "14:34:40 PDT"]
[Termination "DenishevM won by resignation"]

1. e4 {[%clk 0:03:01.9]} 1... c5 {[%clk 0:02:59.5]} 2. c3 {[%clk 0:03:02.2]}
2... d5 {[%clk 0:02:58.8]} 3. exd5 {[%clk 0:03:03.1]} 3... Qxd5 {[%clk
0:03:00.7]} 4. d4 {[%clk 0:03:02.1]} 4... Nf6 {[%clk 0:03:01.8]} 5. Nf3 {[%clk
0:03:02.1]} 5... e6 {[%clk 0:03:00.5]} 6. Be3 {[%clk 0:03:00.4]} 6... cxd4
{[%clk 0:03:01]} 7. cxd4 {[%clk 0:03:02.3]} 7... Nc6 {[%clk 0:03:02.4]} 8. a3
{[%clk 0:03:02.6]} 8... Be7 {[%clk 0:03:03]} 9. Nc3 {[%clk 0:03:00.5]} 9... Qd6
{[%clk 0:03:04.5]} 10. Bd3 {[%clk 0:02:59.2]} 10... O-O {[%clk 0:03:04.9]} 11.
O-O {[%clk 0:03:01.1]} 11... b6 {[%clk 0:03:06.4]} 12. Qe2 {[%clk 0:03:03]}
12... Bb7 {[%clk 0:03:07.5]} 13. Rad1 {[%clk 0:03:04.2]} 13... Rfd8 {[%clk
0:03:07.8]} 14. Rfe1 {[%clk 0:03:05.8]} 14... Rac8 {[%clk 0:03:08.7]} 15. Bb1
{[%clk 0:03:07.3]} 15... a6 {[%clk 0:03:09.7]} 16. Ba2 {[%clk 0:03:06.7]} 16...
Bf8 {[%clk 0:03:08]} 17. Bg5 {[%clk 0:03:05]} 17... Ne7 {[%clk 0:02:51.9]} 18.
Bxf6 {[%clk 0:02:48.1]} 18... gxf6 {[%clk 0:02:53.8]} 19. Ne4 {[%clk 0:02:48.6]}
19... Bxe4 {[%clk 0:02:53.6]} 20. Qxe4 {[%clk 0:02:50.5]} 20... Nd5 {[%clk
0:02:50.2]} 21. Bb1 {[%clk 0:02:44.4]} 21... f5 {[%clk 0:02:44.5]} 22. Qh4
{[%clk 0:02:45.5]} 22... Bg7 {[%clk 0:02:41.1]} 23. Ng5 {[%clk 0:02:42.1]} 23...
h6 {[%clk 0:02:40.3]} 24. Nf3 {[%clk 0:02:42.8]} 24... Qf4 {[%clk 0:02:35.7]}
25. Qxf4 {[%clk 0:02:35.9]} 25... Nxf4 {[%clk 0:02:37.6]} 26. g3 {[%clk
0:02:37.3]} 26... Nd5 {[%clk 0:02:35.9]} 27. Ne5 {[%clk 0:02:36.4]} 27... Rc7
{[%clk 0:02:26.3]} 28. Kg2 {[%clk 0:02:28.1]} 28... Rdc8 {[%clk 0:02:21.2]} 29.
h3 {[%clk 0:02:26.5]} 29... b5 {[%clk 0:01:54.8]} 30. Bd3 {[%clk 0:02:22.3]}
30... Bf6 {[%clk 0:01:48.1]} 31. Kf3 {[%clk 0:02:17.8]} 31... Ne7 {[%clk
0:01:40.4]} 32. g4 {[%clk 0:01:55.3]} 32... fxg4+ {[%clk 0:01:29.1]} 33. hxg4
{[%clk 0:01:57.2]} 33... Rd8 {[%clk 0:01:28.7]} 34. Bb1 {[%clk 0:01:53.9]} 34...
Nc6 {[%clk 0:01:23.8]} 35. Nxc6 {[%clk 0:01:53.2]} 35... Rxc6 {[%clk 0:01:25.7]}
36. Rd3 {[%clk 0:01:40]} 36... Rxd4 {[%clk 0:01:19]} 37. Rxd4 {[%clk 0:01:41]}
37... Bxd4 {[%clk 0:01:20.9]} 38. Re2 {[%clk 0:01:40.8]} 38... Kg7 {[%clk
0:01:16.5]} 39. Ke4 {[%clk 0:01:39.5]} 39... Bf6 {[%clk 0:01:12.1]} 40. f4
{[%clk 0:01:40.7]} 40... Rc4+ {[%clk 0:01:11.8]} 41. Kf3 {[%clk 0:01:40.3]}
41... a5 {[%clk 0:01:11.8]} 42. Bd3 {[%clk 0:01:38.8]} 42... Rc5 {[%clk
0:01:11.8]} 43. b4 {[%clk 0:01:16.7]} 43... axb4 {[%clk 0:01:10.8]} 44. axb4
{[%clk 0:01:18.6]} 44... Rc3 {[%clk 0:01:12.4]} 45. Re3 {[%clk 0:01:13.9]} 45...
Bd4 {[%clk 0:01:11.8]} 46. Re4 {[%clk 0:01:08.1]} 46... Rxd3+ {[%clk 0:01:07]}
47. Ke2 {[%clk 0:01:09.3]} 47... Re3+ {[%clk 0:01:08.3]} 48. Rxe3 {[%clk
0:01:09.6]} 48... Bxe3 {[%clk 0:01:10.2]} 49. Kxe3 {[%clk 0:01:11]} 49... Kg6
{[%clk 0:01:11.9]} 50. Kd4 {[%clk 0:01:12]} 50... f5 {[%clk 0:01:07.7]} 51.
gxf5+ {[%clk 0:01:08.8]} 51... Kxf5 {[%clk 0:01:08.5]} 52. Kc5 {[%clk
0:01:09.9]} 52... h5 {[%clk 0:01:09.1]} 53. Kxb5 {[%clk 0:01:11.8]} 53... h4
{[%clk 0:01:11]} 54. Kc5 {[%clk 0:01:12.8]} 54... h3 {[%clk 0:01:12.9]} 55. b5
{[%clk 0:01:13.7]} 55... h2 {[%clk 0:01:14.8]} 56. b6 {[%clk 0:01:15.6]} 56...
h1=Q {[%clk 0:01:16.7]} 57. Kd6 {[%clk 0:01:15.7]} 57... Qb7 {[%clk 0:01:18.6]}
0-1

[Event "*** Titled Tuesday Blitz"]
[Site "Chess.com"]
[Date "2019.06.04"]
[Round "7"]
[White "witcher8"]
[Black "matiss90"]
[Result "1-0"]
[WhiteElo "2394"]
[BlackElo "2439"]
[TimeControl "180+2"]
[EndTime "14:34:44 PDT"]
[Termination "witcher8 won by checkmate"]

1. e4 {[%clk 0:03:01.9]} 1... c5 {[%clk 0:03:00.7]} 2. Nf3 {[%clk 0:03:02.4]}
2... d6 {[%clk 0:03:01.8]} 3. d4 {[%clk 0:03:03.4]} 3... cxd4 {[%clk 0:03:03.7]}
4. Nxd4 {[%clk 0:03:05.3]} 4... Nf6 {[%clk 0:03:05.2]} 5. Nc3 {[%clk 0:03:06.3]}
5... g6 {[%clk 0:03:06.3]} 6. Be3 {[%clk 0:03:03.4]} 6... Bg7 {[%clk 0:03:07.4]}
7. f3 {[%clk 0:03:04.7]} 7... O-O {[%clk 0:03:08]} 8. Qd2 {[%clk 0:03:04.1]}
8... Nc6 {[%clk 0:03:09.6]} 9. O-O-O {[%clk 0:03:04]} 9... d5 {[%clk 0:03:10]}
10. Nxc6 {[%clk 0:02:55.6]} 10... bxc6 {[%clk 0:03:09.2]} 11. Bh6 {[%clk
0:02:54.9]} 11... Rb8 {[%clk 0:02:43.3]} 12. Bxg7 {[%clk 0:02:48.9]} 12... Kxg7
{[%clk 0:02:43.6]} 13. exd5 {[%clk 0:02:50.8]} 13... cxd5 {[%clk 0:02:42.5]} 14.
Nxd5 {[%clk 0:02:49.8]} 14... Nxd5 {[%clk 0:02:25.8]} 15. Qxd5 {[%clk
0:02:49.2]} 15... Qc7 {[%clk 0:02:26.7]} 16. Qc4 {[%clk 0:02:47.2]} 16... Qa5
{[%clk 0:02:09.5]} 17. Qd4+ {[%clk 0:02:47.9]} 17... e5 {[%clk 0:02:04.3]} 18.
Qd5 {[%clk 0:02:39.9]} 18... Qc7 {[%clk 0:01:47]} 19. Qd6 {[%clk 0:02:40.9]}
19... Qxd6 {[%clk 0:01:31.9]} 20. Rxd6 {[%clk 0:02:42.8]} 20... Be6 {[%clk
0:01:27.4]} 21. Ra6 {[%clk 0:02:34.2]} 21... Rb7 {[%clk 0:01:23]} 22. Bd3 {[%clk
0:02:33.9]} 22... Rfb8 {[%clk 0:01:22.4]} 23. b3 {[%clk 0:02:31.1]} 23... Rc7
{[%clk 0:01:22.8]} 24. c4 {[%clk 0:02:27.9]} 24... Rd8 {[%clk 0:01:01.4]} 25.
Bc2 {[%clk 0:02:23.6]} 25... Bf5 {[%clk 0:00:33]} 26. Rd1 {[%clk 0:01:43.9]}
26... Re8 {[%clk 0:00:32.7]} 27. Bxf5 {[%clk 0:01:37.8]} 27... gxf5 {[%clk
0:00:34.6]} 28. Rd5 {[%clk 0:01:39.1]} 28... f6 {[%clk 0:00:18.8]} 29. Kd2
{[%clk 0:01:36.7]} 29... Kg6 {[%clk 0:00:17.6]} 30. Ke3 {[%clk 0:01:37.5]} 30...
f4+ {[%clk 0:00:15.7]} 31. Ke4 {[%clk 0:01:35.5]} 31... Ree7 {[%clk 0:00:14.9]}
32. c5 {[%clk 0:01:26.3]} 32... Kg5 {[%clk 0:00:12.6]} 33. h4+ {[%clk
0:01:21.3]} 33... Kxh4 {[%clk 0:00:12.2]} 34. Rxf6 {[%clk 0:01:20.5]} 34... Kg3
{[%clk 0:00:13.2]} 35. Rd2 {[%clk 0:01:11.7]} 35... Rxc5 {[%clk 0:00:12.1]} 36.
Rh6 {[%clk 0:00:53.5]} 36... Rc3 {[%clk 0:00:08.2]} 37. Rh3# {[%clk 0:00:52.9]}
1-0

[Event "*** Titled Tuesday Blitz"]
[Site "Chess.com"]
[Date "2019.06.04"]
[Round "7"]
[White "Zubrrr"]
[Black "mishanick"]
[Result "1-0"]
[WhiteElo "2734"]
[BlackElo "2985"]
[TimeControl "180+2"]
[EndTime "14:34:51 PDT"]
[Termination "Zubrrr won by resignation"]

1. c4 {[%clk 0:03:01.9]} 1... Nf6 {[%clk 0:02:58.3]} 2. g3 {[%clk 0:03:03.1]}
2... g6 {[%clk 0:02:58.9]} 3. Bg2 {[%clk 0:03:04.5]} 3... c6 {[%clk 0:03:00.5]}
4. Nc3 {[%clk 0:03:06]} 4... d5 {[%clk 0:03:01.8]} 5. d4 {[%clk 0:03:05.9]} 5...
dxc4 {[%clk 0:03:01.9]} 6. Nf3 {[%clk 0:03:05.3]} 6... Bg7 {[%clk 0:02:59.4]} 7.
e3 {[%clk 0:03:06]} 7... b5 {[%clk 0:02:57.1]} 8. Ne5 {[%clk 0:03:06.6]} 8...
Nd5 {[%clk 0:02:57.8]} 9. Nxc6 {[%clk 0:02:49.6]} 9... Nxc6 {[%clk 0:02:59.7]}
10. Bxd5 {[%clk 0:02:49.8]} 10... Bb7 {[%clk 0:03:01]} 11. Qf3 {[%clk
0:02:50.3]} 11... Kd7 {[%clk 0:02:47]} 12. Qxf7 {[%clk 0:02:47.5]} 12... Bf6
{[%clk 0:02:47.9]} 13. Ne4 {[%clk 0:02:45.7]} 13... Kc8 {[%clk 0:02:44.1]} 14.
Qe6+ {[%clk 0:02:18.9]} 14... Kc7 {[%clk 0:02:44.3]} 15. Nxf6 {[%clk 0:01:48]}
15... exf6 {[%clk 0:02:44]} 16. Qf7+ {[%clk 0:01:31.6]} 16... Qd7 {[%clk
0:02:44]} 17. Qxd7+ {[%clk 0:01:31.6]} 17... Kxd7 {[%clk 0:02:45.9]} 18. Bd2
{[%clk 0:01:20.2]} 18... Rhe8 {[%clk 0:02:38.9]} 19. O-O {[%clk 0:01:18.1]}
19... Nd8 {[%clk 0:02:40.2]} 20. Bxb7 {[%clk 0:01:17.7]} 20... Nxb7 {[%clk
0:02:42.1]} 21. a4 {[%clk 0:01:08.2]} 21... a6 {[%clk 0:02:42.1]} 22. Ra3 {[%clk
0:00:44.1]} 22... Nd6 {[%clk 0:02:38.7]} 23. Rfa1 {[%clk 0:00:44.3]} 23... Ne4
{[%clk 0:02:05.4]} 24. Be1 {[%clk 0:00:39.6]} 24... Reb8 {[%clk 0:02:04.1]} 25.
axb5 {[%clk 0:00:32.9]} 25... Rxb5 {[%clk 0:02:06]} 26. f3 {[%clk 0:00:18.4]}
26... Ng5 {[%clk 0:02:07.1]} 27. Bc3 {[%clk 0:00:18.7]} 27... Nxf3+ {[%clk
0:02:07.6]} 28. Kg2 {[%clk 0:00:20.1]} 28... Ng5 {[%clk 0:02:07]} 29. Rxa6
{[%clk 0:00:21.4]} 29... Rxa6 {[%clk 0:02:08]} 30. Rxa6 {[%clk 0:00:23.3]} 30...
f5 {[%clk 0:02:09.3]} 31. Ra4 {[%clk 0:00:21.7]} 31... Rb8 {[%clk 0:02:01.2]}
32. Rxc4 {[%clk 0:00:22.2]} 32... Re8 {[%clk 0:02:02.8]} 33. h4 {[%clk
0:00:17.8]} 33... Ne4 {[%clk 0:02:02.3]} 34. Be1 {[%clk 0:00:17.7]} 34... Nf6
{[%clk 0:02:00.7]} 35. Bf2 {[%clk 0:00:17.3]} 35... Rb8 {[%clk 0:02:00.9]} 36.
Rc2 {[%clk 0:00:17.9]} 36... Rb3 {[%clk 0:02:01.2]} 37. Kf3 {[%clk 0:00:17.9]}
37... h6 {[%clk 0:02:01.7]} 38. Be1 {[%clk 0:00:18.3]} 38... Nd5 {[%clk
0:02:02.7]} 39. Bd2 {[%clk 0:00:19.2]} 39... g5 {[%clk 0:02:03.2]} 40. hxg5
{[%clk 0:00:20.1]} 40... hxg5 {[%clk 0:02:05.1]} 41. Ke2 {[%clk 0:00:19.3]}
41... g4 {[%clk 0:02:04.1]} 42. Bc1 {[%clk 0:00:18.9]} 42... Kd6 {[%clk
0:02:01.8]} 43. Rc5 {[%clk 0:00:18.8]} 43... Rb8 {[%clk 0:02:02.3]} 44. Ra5
{[%clk 0:00:18.6]} 44... Rc8 {[%clk 0:02:03.3]} 45. Bd2 {[%clk 0:00:16.5]} 45...
Rc2 {[%clk 0:02:03.2]} 46. Rb5 {[%clk 0:00:14.8]} 46... Rc7 {[%clk 0:02:01.3]}
47. Kd3 {[%clk 0:00:14.5]} 47... Rh7 {[%clk 0:02:02.2]} 48. e4 {[%clk
0:00:13.1]} 48... fxe4+ {[%clk 0:02:03.1]} 49. Kxe4 {[%clk 0:00:15]} 49... Re7+
{[%clk 0:02:03.8]} 50. Kd3 {[%clk 0:00:15.6]} 50... Rf7 {[%clk 0:02:03.7]} 51.
Kc4 {[%clk 0:00:14.1]} 51... Ne7 {[%clk 0:01:56.1]} 52. Bb4+ {[%clk 0:00:14.1]}
52... Kc6 {[%clk 0:01:53.3]} 53. d5+ {[%clk 0:00:13]} 53... Kc7 {[%clk
0:01:54.4]} 54. d6+ {[%clk 0:00:13.8]} 1-0

[Event "*** Titled Tuesday Blitz"]
[Site "Chess.com"]
[Date "2019.06.04"]
[Round "7"]
[White "CookiesAndIceCream"]
[Black "guillembaches"]
[Result "0-1"]
[WhiteElo "2367"]
[BlackElo "2305"]
[TimeControl "180+2"]
[EndTime "14:35:06 PDT"]
[Termination "guillembaches won on time"]

1. e4 {[%clk 0:03:01.9]} 1... c5 {[%clk 0:02:59.8]} 2. Nf3 {[%clk 0:03:02.4]}
2... d6 {[%clk 0:03:00.9]} 3. d4 {[%clk 0:03:03.8]} 3... cxd4 {[%clk 0:03:02.1]}
4. Nxd4 {[%clk 0:03:05.7]} 4... Nf6 {[%clk 0:03:03.2]} 5. Nc3 {[%clk 0:03:07.1]}
5... Nc6 {[%clk 0:03:04.5]} 6. Bg5 {[%clk 0:03:08.1]} 6... e6 {[%clk 0:03:05.3]}
7. Qd2 {[%clk 0:03:09.5]} 7... h6 {[%clk 0:03:06.6]} 8. Be3 {[%clk 0:03:09.9]}
8... Ng4 {[%clk 0:03:07.2]} 9. Nxc6 {[%clk 0:03:10.7]} 9... bxc6 {[%clk
0:03:07]} 10. Bf4 {[%clk 0:02:44.4]} 10... Qb6 {[%clk 0:03:05.1]} 11. Na4 {[%clk
0:02:14.8]} 11... Qb8 {[%clk 0:02:36.5]} 12. f3 {[%clk 0:01:57.3]} 12... e5
{[%clk 0:02:24.5]} 13. fxg4 {[%clk 0:01:29.9]} 13... exf4 {[%clk 0:02:25.2]} 14.
Bc4 {[%clk 0:01:26]} 14... Be7 {[%clk 0:01:49]} 15. O-O {[%clk 0:01:20.2]} 15...
O-O {[%clk 0:01:43.7]} 16. Qxf4 {[%clk 0:01:19.6]} 16... d5 {[%clk 0:01:38.1]}
17. Qxb8 {[%clk 0:01:02.9]} 17... Rxb8 {[%clk 0:01:38.6]} 18. exd5 {[%clk
0:01:04.3]} 18... cxd5 {[%clk 0:01:39.7]} 19. Bxd5 {[%clk 0:01:05.5]} 19... Bxg4
{[%clk 0:01:40.6]} 20. Bb3 {[%clk 0:00:50.8]} 20... Bf6 {[%clk 0:01:24.8]} 21.
Rae1 {[%clk 0:00:32.6]} 21... Rfc8 {[%clk 0:01:18.2]} 22. Rxf6 {[%clk
0:00:20.6]} 22... gxf6 {[%clk 0:01:18.2]} 23. Re7 {[%clk 0:00:21.9]} 23... Be6
{[%clk 0:01:14.9]} 24. Bxe6 {[%clk 0:00:14.6]} 24... fxe6 {[%clk 0:01:14.6]} 25.
Rxe6 {[%clk 0:00:15.4]} 25... Rxc2 {[%clk 0:01:12]} 26. Rxf6 {[%clk 0:00:16.6]}
26... Rb4 {[%clk 0:01:11.4]} 27. b3 {[%clk 0:00:09.7]} 27... Rxa2 {[%clk
0:01:11.9]} 28. Nc5 {[%clk 0:00:08.5]} 28... Rc2 {[%clk 0:01:04.8]} 29. Ne6
{[%clk 0:00:02.7]} 29... Rxb3 {[%clk 0:01:01.8]} 30. h3 {[%clk 0:00:03]} 30...
Rbb2 {[%clk 0:00:59.3]} 31. Nf4 {[%clk 0:00:03.7]} 31... a5 {[%clk 0:00:57.6]}
32. Rxh6 {[%clk 0:00:04.5]} 32... a4 {[%clk 0:00:58.5]} 33. Ra6 {[%clk
0:00:05.9]} 33... Rb4 {[%clk 0:00:56]} 34. Nd5 {[%clk 0:00:06.4]} 34... Rd4
{[%clk 0:00:53.7]} 35. Nb6 {[%clk 0:00:07.2]} 35... Ra2 {[%clk 0:00:50.3]} 36.
Kh2 {[%clk 0:00:04.5]} 36... a3 {[%clk 0:00:51.3]} 37. Na4 {[%clk 0:00:05.9]}
37... Rdd2 {[%clk 0:00:51.2]} 38. Nc3 {[%clk 0:00:07]} 38... Rxg2+ {[%clk
0:00:44.8]} 39. Kh1 {[%clk 0:00:08.1]} 39... Rac2 {[%clk 0:00:43.4]} 40. Rxa3
{[%clk 0:00:07.6]} 40... Rgd2 {[%clk 0:00:43.9]} 0-1